fUSD/lending_fUSD_20250530
["ID","MTS","AMOUNT","RATE_DAILY","PERIOD"]
[363077700,1748568648158,-420.0,0.00021917,2]
[363077701,1748568648168,-420.0,0.00021917,2]
[363077703,1748568648178,-772.15,0.00021917,2]
[363077705,1748568648188,-420.0,0.00021917,2]
[363077707,1748568648197,-602.64,0.00021917,2]
[363077709,1748568648209,-764.04,0.00021917,2]
[363077711,1748568648219,-420.0,0.00021917,2]
[363077712,1748568648228,-700.97,0.00021917,2]
[363077714,1748568648237,-428.41273044,0.00021917,2]
[363077716,1748568648247,-1420.65,0.00021917,2]
[363077718,1748568648256,-423.56,0.00021917,2]
[363077720,1748568648266,-1152.77,0.00021917,2]
[363077721,1748568648275,-963.24,0.00021917,2]
[363077723,1748568648285,-3326.82,0.00021917,2]
[363077725,1748568648295,-3619.42,0.00021917,2]
[363077727,1748568648304,-420.0,0.00021917,2]
[363077729,1748568648314,-1055.43,0.00021917,2]
[363077730,1748568648324,-921.19,0.00021917,2]
[363077732,1748568648333,-499.15,0.00021917,2]
[363077734,1748568648342,-920.0,0.00021917,2]
[363077736,1748568648352,-1496.01,0.00021917,2]
[363077738,1748568648361,-652.71,0.00021917,2]
[363077740,1748568648371,-420.0,0.00021917,2]
[363077741,1748568648380,-420.0,0.00021917,2]
[363077743,1748568648390,-420.0,0.00021917,2]
[363077745,1748568648401,-513.08,0.00021917,2]
[363077747,1748568648411,-420.0,0.00021917,2]
[363077749,1748568648420,-966.09,0.00021917,2]
[363077750,1748568648430,-420.0,0.00021917,2]
[363077752,1748568648440,-1102.12,0.00021917,2]
[363077754,1748568648455,-3628.22,0.00021917,2]
[363077756,1748568648466,-1092.87,0.00021917,2]
[363077758,1748568648477,-512.82,0.00021917,2]
[363077760,1748568648487,-420.0,0.00021917,2]
[363077761,1748568648497,-162994.95,0.00021917,2]
[363077763,1748568648506,-420.0,0.00021917,2]
[363077765,1748568648517,-420.0,0.00021917,2]
[363077767,1748568648528,-423.17149228,0.00021917,2]
[363077768,1748568648538,-421.11217182,0.00021917,2]
[363077770,1748568648549,-614.47,0.00021917,2]
[363077772,1748568648558,-424.14711311,0.00021917,2]
[363077774,1748568648568,-420.0,0.00021917,2]
[363077775,1748568648578,-7920.85,0.00021917,2]
[363077777,1748568648588,-26919.13279751,0.00021917,2]
[363077826,1748568649245,-13548.39720249,0.00021917,2]
[363077828,1748568649255,-849.38,0.00021917,2]
[363077830,1748568649265,-1508.4171376,0.00021917,2]
[363077833,1748568649277,-782.0128624,0.00021917,2]
[363077835,1748568649287,-1120.34,0.00021917,2]
[363077837,1748568649297,-6910.5,0.00021917,2]
[363077839,1748568649307,-435.79952081,0.00021917,2]
[363077841,1748568649317,-4153.74,0.00021917,2]
[363077843,1748568649327,-420.0,0.00021917,2]
[363077845,1748568649337,-552.61,0.00021917,2]
[363077847,1748568649349,-1169.97,0.00021917,2]
[363077849,1748568649359,-420.0,0.00021917,2]
[363077851,1748568649369,-422.22678267,0.00021917,2]
[363077853,1748568649379,-1428.09,0.00021917,2]
[363077855,1748568649389,-10817.03,0.00021917,2]
[363077857,1748568649399,-422.20101302,0.00021917,2]
[363077859,1748568649410,-472.44,0.00021917,2]
[363077861,1748568649420,-1933.72,0.00021917,2]
[363077863,1748568649429,-420.0,0.00021917,2]
[363077865,1748568649440,-574.57,0.00021917,2]
[363077868,1748568649453,-423.21810718,0.00021917,2]
[363077870,1748568649465,-420.0,0.00021917,2]
[363077872,1748568649475,-3019.0,0.00021917,2]
[363077874,1748568649486,-420.0,0.00021917,2]
[363077876,1748568649497,-420.0,0.00021917,2]
[363077878,1748568649508,-749.08,0.00021917,2]
[363077880,1748568649519,-420.0,0.00021917,2]
[363077882,1748568649529,-1495.51,0.00021917,2]
[363077884,1748568649540,-118.34694548,0.00021917,2]
[363077949,1748568650158,-300.0,0.00019999,2]
[363077951,1748568650168,-200.0,0.000215,7]
[363077953,1748568650178,-301.65305452,0.00021917,2]
[363077955,1748568650188,-254.09694548,0.00021917,2]
[363078092,1748568651576,-500.0,0.000216,7]
[363078094,1748568651585,-165.90305452,0.00021917,2]
[363078096,1748568651595,-661.62,0.00021917,2]
[363078098,1748568651605,-2087.14,0.00021917,2]
[363078100,1748568651615,-1647.3,0.00021917,2]
[363078102,1748568651625,-169.58036343,0.00021917,2]
[363078103,1748568651635,-420.0,0.00021917,2]
[363078104,1748568651644,-445.6695439,0.00021917,2]
[363078105,1748568651653,-423.14612597,0.00021917,2]
[363078106,1748568651663,-3075.6,0.00021917,2]
[363078107,1748568651672,-423.55056675,0.00021917,2]
[363078108,1748568651681,-1517.86,0.00021917,2]
[363078109,1748568651690,-420.0,0.00021917,2]
[363078110,1748568651699,-420.0,0.00021917,2]
[363078111,1748568651708,-921.25,0.00021917,2]
[363078112,1748568651722,-429.02365213,0.00021917,2]
[363078113,1748568651731,-428.92942692,0.00021917,2]
[363078114,1748568651741,-420.0,0.00021917,2]
[363078115,1748568651750,-281.87115115,0.00021917,2]
[363078116,1748568651759,-420.0,0.00021917,2]
[363078117,1748568651768,-420.0,0.00021917,2]
[363078118,1748568651778,-699.29,0.00021917,2]
[363078119,1748568651787,-420.0,0.00021917,2]
[363078120,1748568651795,-745.51,0.00021917,2]
[363078121,1748568651805,-165.41720684,0.00021917,2]
[363078122,1748568651814,-202.46800861,0.00021918,2]
[363078123,1748568651823,-166.66,0.00021969,2]
[363078124,1748568651833,-151.0,0.0002197,7]
[363078125,1748568651843,-500.0,0.00021973,2]
[363078126,1748568651853,-500.0,0.00021973,2]
[363078127,1748568651862,-500.0,0.00021973,2]
[363078128,1748568651871,-211.07782234,0.00021986,2]
[363078129,1748568651880,-152.15876099,0.00021986,2]
[363078130,1748568651890,-500.0,0.00021986,2]
[363078131,1748568651899,-154.14303321,0.00021986,2]
[363078132,1748568651909,-517.14849304,0.00021986,2]
[363078133,1748568651918,-500.0,0.00021986,2]
[363078134,1748568651928,-800.0,0.00021987,2]
[363078135,1748568651937,-634.0,0.00021987,2]
[363078136,1748568651947,-924.0,0.00021987,2]
[363078137,1748568651957,-1465.0,0.00021987,2]
[363078138,1748568651971,-1267.0,0.00021987,2]
[363078139,1748568651980,-556.0,0.00021987,2]
[363078140,1748568651989,-587.0,0.00021987,2]
[363078141,1748568651998,-1155.0,0.00021987,2]
[363078142,1748568652008,-158.188,0.00021987,2]
[363078143,1748568652017,-4068.0,0.00021987,2]
[363078144,1748568652028,-6929.0,0.00021987,2]
[363078145,1748568652037,-1314.0,0.00021987,2]
[363078146,1748568652046,-861.102,0.00021987,2]
[363078147,1748568652056,-180.0,0.00022,3]
[363078148,1748568652065,-180.0,0.00022,5]
[363078149,1748568652075,-181.11,0.00022,4]
[363078151,1748568652084,-269.0,0.00022,2]
[363078153,1748568652093,-157.0,0.00022,2]
[363078155,1748568652103,-1299.428048,0.00022014,3]
[363078156,1748568652113,-174.91342895,0.00022037,2]
[363078157,1748568652123,-4950.24263801,0.00022114,2]
[363078158,1748568652132,-151.0,0.00022124,7]
[363078159,1748568652142,-500.0,0.00022173,2]
[363078160,1748568652151,-500.0,0.00022173,2]
[363078161,1748568652161,-607.56901382,0.00022173,2]
[363078162,1748568652170,-500.0,0.00022173,2]
[363078163,1748568652180,-500.0,0.00022173,2]
[363078164,1748568652190,-546.83547389,0.00022173,2]
[363078165,1748568652200,-500.0,0.00022173,2]
[363078166,1748568652213,-502.71917862,0.00022173,2]
[363078167,1748568652223,-500.0,0.00022173,2]
[363078168,1748568652232,-500.0,0.00022173,2]
[363078169,1748568652242,-500.0,0.00022173,2]
[363078170,1748568652251,-500.0,0.00022173,2]
[363078171,1748568652260,-500.0,0.00022173,2]
[363078172,1748568652270,-500.0,0.00022173,2]
[363078173,1748568652280,-500.0,0.00022173,2]
[363078174,1748568652289,-500.0,0.00022173,2]
[363078175,1748568652299,-500.0,0.00022173,2]
[363078176,1748568652308,-300.576988,0.00022183,7]
[363078177,1748568652319,-420.0,0.00022186,2]
[363078178,1748568652329,-293.81414569,0.00022186,2]
[363078179,1748568652339,-420.0,0.00022186,2]
[363078180,1748568652348,-420.0,0.00022186,2]
[363078181,1748568652358,-500.0,0.00022186,2]
[363078182,1748568652367,-500.0,0.00022186,2]
[363078183,1748568652376,-151.0,0.0002219,7]
[363078185,1748568652386,-204.47,0.0002219,2]
[363078187,1748568652396,-500.0,0.0002219,2]
[363078189,1748568652406,-500.0,0.0002219,2]
[363078191,1748568652415,-619.17998918,0.0002219,2]
[363078193,1748568652425,-500.0,0.0002219,2]
[363078195,1748568652435,-500.0,0.0002219,2]
[363078197,1748568652449,-500.0,0.0002219,2]
[363078199,1748568652460,-151.0,0.00022191,7]
[363078201,1748568652470,-151.0,0.00022191,7]
[363078203,1748568652479,-420.0,0.00022191,2]
[363078205,1748568652490,-420.0,0.00022191,2]
[363078207,1748568652499,-1734.170887,0.00022191,2]
[363078209,1748568652508,-1629.865428,0.00022191,2]
[363078211,1748568652519,-420.0,0.00022191,2]
[363078213,1748568652529,-516.62,0.00022191,2]
[363078215,1748568652539,-150.49645381,0.00022191,2]
[363078217,1748568652549,-452.93,0.00022191,2]
[363078219,1748568652559,-336.28707823,0.00022191,2]
[363078221,1748568652568,-184.612019,0.00022191,2]
[363078223,1748568652578,-420.0,0.00022191,2]
[363078225,1748568652587,-420.0,0.00022191,2]
[363078227,1748568652596,-473.46,0.00022191,2]
[363078229,1748568652606,-420.0,0.00022191,2]
[363078231,1748568652616,-420.0,0.00022191,2]
[363078233,1748568652625,-446.56,0.00022191,2]
[363078235,1748568652634,-521.32,0.00022191,2]
[363078237,1748568652647,-428.36,0.00022191,2]
[363078239,1748568652656,-524.53,0.00022191,2]
[363078241,1748568652666,-420.0,0.00022191,2]
[363078243,1748568652675,-420.0,0.00022191,2]
[363078245,1748568652684,-420.0,0.00022191,2]
[363078247,1748568652694,-843.07,0.00022191,2]
[363078249,1748568652703,-420.0,0.00022191,2]
[363078251,1748568652714,-420.0,0.00022191,2]
[363078253,1748568652723,-487.7,0.00022191,2]
[363078255,1748568652733,-420.0,0.00022191,2]
[363078257,1748568652742,-192.83911043,0.00022191,2]
[363078259,1748568652752,-420.0,0.00022191,2]
[363078261,1748568652761,-420.0,0.00022191,2]
[363078263,1748568652770,-420.0,0.00022191,2]
[363078265,1748568652779,-420.0,0.00022191,2]
[363078267,1748568652789,-533.14,0.00022191,2]
[363078269,1748568652798,-420.0,0.00022191,2]
[363078271,1748568652807,-420.0,0.00022191,2]
[363078273,1748568652816,-420.0,0.00022191,2]
[363078275,1748568652825,-420.0,0.00022191,2]
[363078277,1748568652834,-420.0,0.00022191,2]
[363078279,1748568652843,-525.75,0.00022191,2]
[363078281,1748568652852,-1047.57,0.00022191,2]
[363078283,1748568652861,-420.0,0.00022191,2]
[363078285,1748568652870,-420.0,0.00022191,2]
[363078287,1748568652880,-294.69,0.00022191,2]
[363078289,1748568652889,-580.07,0.00022191,2]
[363078291,1748568652898,-420.0,0.00022191,2]
[363078293,1748568652908,-420.0,0.00022191,2]
[363078295,1748568652917,-425.03920187,0.00022191,2]
[363078297,1748568652926,-420.0,0.00022191,2]
[363078299,1748568652935,-599.36,0.00022191,2]
[363078301,1748568652944,-420.0,0.00022191,2]
[363078303,1748568652953,-420.0,0.00022191,2]
[363078305,1748568652964,-536.96513782,0.00022191,2]
[363078307,1748568652973,-424.66,0.00022191,2]
[363078309,1748568652982,-420.0,0.00022191,2]
[363078311,1748568652991,-420.0,0.00022191,2]
[363078313,1748568653001,-773.82,0.00022191,2]
[363078315,1748568653011,-664.25,0.00022191,2]
[363078317,1748568653020,-420.0,0.00022191,2]
[363078319,1748568653030,-420.0,0.00022191,2]
[363078321,1748568653039,-420.0,0.00022191,2]
[363078323,1748568653048,-420.0,0.00022191,2]
[363078325,1748568653057,-420.0,0.00022191,2]
[363078327,1748568653066,-448.82,0.00022191,2]
[363078329,1748568653076,-420.0,0.00022191,2]
[363078331,1748568653085,-420.0,0.00022191,2]
[363078333,1748568653095,-420.0,0.00022191,2]
[363078335,1748568653105,-420.0,0.00022191,2]
[363078337,1748568653114,-375.40180453,0.00022191,2]
[363078339,1748568653123,-420.0,0.00022191,2]
[363078341,1748568653133,-420.0,0.00022191,2]
[363078343,1748568653141,-503.28,0.00022191,2]
[363078345,1748568653151,-536.64,0.00022191,2]
[363078347,1748568653160,-420.0,0.00022191,2]
[363078349,1748568653169,-420.0,0.00022191,2]
[363078351,1748568653179,-420.0,0.00022191,2]
[363078353,1748568653188,-420.0,0.00022191,2]
[363078355,1748568653197,-420.0,0.00022191,2]
[363078357,1748568653206,-420.0,0.00022191,2]
[363078359,1748568653217,-420.0,0.00022191,2]
[363078361,1748568653227,-420.0,0.00022191,2]
[363078363,1748568653236,-420.0,0.00022191,2]
[363078365,1748568653245,-786.36,0.00022191,2]
[363078367,1748568653255,-420.0,0.00022191,2]
[363078369,1748568653265,-420.0,0.00022191,2]
[363078371,1748568653274,-420.0,0.00022191,2]
[363078373,1748568653283,-420.0,0.00022191,2]
[363078375,1748568653293,-437.5,0.00022191,2]
[363078377,1748568653302,-420.0,0.00022191,2]
[363078379,1748568653311,-420.0,0.00022191,2]
[363078381,1748568653321,-420.0,0.00022191,2]
[363078383,1748568653330,-420.0,0.00022191,2]
[363078385,1748568653340,-420.0,0.00022191,2]
[363078387,1748568653350,-506.89,0.00022191,2]
[363078389,1748568653359,-420.0,0.00022191,2]
[363078391,1748568653368,-420.0,0.00022191,2]
[363078393,1748568653378,-581.27,0.00022191,2]
[363078395,1748568653387,-420.0,0.00022191,2]
[363078397,1748568653397,-420.0,0.00022191,2]
[363078399,1748568653407,-624.18,0.00022191,2]
[363078401,1748568653416,-420.0,0.00022191,2]
[363078403,1748568653425,-420.0,0.00022191,2]
[363078405,1748568653435,-420.0,0.00022191,2]
[363078407,1748568653445,-420.0,0.00022191,2]
[363078409,1748568653460,-653.26,0.00022191,2]
[363078411,1748568653471,-420.0,0.00022191,2]
[363078413,1748568653481,-420.0,0.00022191,2]
[363078415,1748568653491,-427.15,0.00022191,2]
[363078418,1748568653502,-420.0,0.00022191,2]
[363078420,1748568653512,-420.0,0.00022191,2]
[363078422,1748568653521,-420.0,0.00022191,2]
[363078423,1748568653532,-420.0,0.00022191,2]
[363078426,1748568653542,-420.0,0.00022191,2]
[363078427,1748568653551,-420.0,0.00022191,2]
[363078429,1748568653560,-420.0,0.00022191,2]
[363078431,1748568653569,-470.76,0.00022191,2]
[363078434,1748568653579,-420.0,0.00022191,2]
[363078436,1748568653588,-420.0,0.00022191,2]
[363078438,1748568653597,-755.17,0.00022191,2]
[363078440,1748568653607,-420.0,0.00022191,2]
[363078441,1748568653616,-791.58,0.00022191,2]
[363078444,1748568653625,-300.0,0.00022191,2]
[363078445,1748568653635,-151.0,0.00022191,7]
[363078447,1748568653644,-420.0,0.00022191,2]
[363078450,1748568653655,-977.85,0.00022191,2]
[363078452,1748568653664,-420.0,0.00022191,2]
[363078454,1748568653673,-420.0,0.00022191,2]
[363078456,1748568653683,-420.0,0.00022191,2]
[363078458,1748568653692,-420.0,0.00022191,2]
[363078460,1748568653701,-496.37,0.00022191,2]
[363078462,1748568653713,-420.0,0.00022191,2]
[363078463,1748568653722,-420.0,0.00022191,2]
[363078465,1748568653731,-420.0,0.00022191,2]
[363078467,1748568653741,-420.0,0.00022191,2]
[363078469,1748568653751,-420.0,0.00022191,2]
[363078471,1748568653760,-420.0,0.00022191,2]
[363078473,1748568653769,-420.0,0.00022191,2]
[363078475,1748568653778,-1698.27,0.00022191,2]
[363078477,1748568653788,-420.0,0.00022191,2]
[363078479,1748568653798,-420.0,0.00022191,2]
[363078481,1748568653807,-420.0,0.00022191,2]
[363078483,1748568653817,-420.0,0.00022191,2]
[363078485,1748568653826,-151.0,0.00022191,7]
[363078487,1748568653836,-420.0,0.00022191,2]
[363078489,1748568653845,-420.0,0.00022191,2]
[363078491,1748568653854,-174.9725455,0.00022191,2]
[363078493,1748568653863,-420.0,0.00022191,2]
[363078495,1748568653872,-423.82,0.00022191,2]
[363078497,1748568653881,-420.0,0.00022191,2]
[363078499,1748568653891,-420.0,0.00022191,2]
[363078501,1748568653900,-420.0,0.00022191,2]
[363078504,1748568653911,-420.0,0.00022191,2]
[363078505,1748568653922,-420.0,0.00022191,2]
[363078507,1748568653933,-420.0,0.00022191,2]
[363078509,1748568653942,-1593.83,0.00022191,2]
[363078511,1748568653951,-420.0,0.00022191,2]
[363078514,1748568653963,-420.0,0.00022191,2]
[363078515,1748568653972,-420.0,0.00022191,2]
[363078518,1748568653982,-420.0,0.00022191,2]
[363078520,1748568653991,-420.0,0.00022191,2]
[363078522,1748568654000,-420.0,0.00022191,2]
[363078524,1748568654009,-420.0,0.00022191,2]
[363078525,1748568654018,-420.0,0.00022191,2]
[363078526,1748568654028,-420.0,0.00022191,2]
[363078527,1748568654037,-1718.33,0.00022191,2]
[363078528,1748568654046,-420.0,0.00022191,2]
[363078529,1748568654055,-151.0,0.00022191,7]
[363078530,1748568654064,-420.0,0.00022191,2]
[363078531,1748568654074,-420.0,0.00022191,2]
[363078532,1748568654083,-420.0,0.00022191,2]
[363078533,1748568654092,-420.0,0.00022191,2]
[363078534,1748568654101,-420.0,0.00022191,2]
[363078535,1748568654110,-420.0,0.00022191,2]
[363078537,1748568654120,-247.31838956,0.00022191,2]
[363078539,1748568654129,-420.0,0.00022191,2]
[363078541,1748568654138,-420.0,0.00022191,2]
[363078543,1748568654147,-420.0,0.00022191,2]
[363078544,1748568654156,-338.88227532,0.00022191,2]
[363078546,1748568654165,-420.0,0.00022191,2]
[363078549,1748568654175,-698.63,0.00022191,2]
[363078551,1748568654184,-596.43,0.00022191,2]
[363078552,1748568654193,-682.08,0.00022191,2]
[363078553,1748568654202,-1501.32,0.00022191,2]
[363078554,1748568654213,-1343.52,0.00022191,2]
[363078555,1748568654222,-421.95,0.00022191,2]
[363078556,1748568654232,-420.0,0.00022191,2]
[363078557,1748568654241,-420.0,0.00022191,2]
[363078558,1748568654250,-515.73753897,0.00022191,2]
[363078559,1748568654260,-420.0,0.00022191,2]
[363078560,1748568654269,-550.04,0.00022191,2]
[363078561,1748568654279,-477.61,0.00022191,2]
[363078562,1748568654288,-547.27,0.00022191,2]
[363078563,1748568654298,-504.96,0.00022191,2]
[363078564,1748568654308,-420.0,0.00022191,2]
[363078565,1748568654317,-420.0,0.00022191,2]
[363078566,1748568654327,-420.0,0.00022191,2]
[363078567,1748568654336,-365.65396414,0.00022191,2]
[363078568,1748568654346,-420.0,0.00022191,2]
[363078569,1748568654355,-179.95,0.00022191,2]
[363078570,1748568654366,-1264.29,0.00022191,2]
[363078571,1748568654376,-506.89,0.00022191,2]
[363078572,1748568654385,-484.88,0.00022191,2]
[363078573,1748568654394,-420.0,0.00022191,2]
[363078574,1748568654404,-876.36,0.00022191,2]
[363078575,1748568654413,-763.82,0.00022191,2]
[363078576,1748568654423,-545.35,0.00022191,2]
[363078577,1748568654432,-420.0,0.00022191,2]
[363078578,1748568654442,-420.0,0.00022191,2]
[363078579,1748568654455,-711.75,0.00022191,2]
[363078580,1748568654467,-420.0,0.00022191,2]
[363078581,1748568654477,-420.0,0.00022191,2]
[363078582,1748568654487,-1154.75,0.00022191,2]
[363078583,1748568654496,-1483.46,0.00022191,2]
[363078584,1748568654506,-420.0,0.00022191,2]
[363078585,1748568654515,-424.25,0.00022191,2]
[363078586,1748568654525,-420.0,0.00022191,2]
[363078587,1748568654534,-420.0,0.00022191,2]
[363078588,1748568654543,-1000.0,0.00022191,2]
[363078589,1748568654553,-420.0,0.00022191,2]
[363078590,1748568654562,-949.77,0.00022191,2]
[363078591,1748568654571,-420.0,0.00022191,2]
[363078592,1748568654581,-483.19,0.00022191,2]
[363078593,1748568654590,-420.0,0.00022191,2]
[363078594,1748568654599,-2154.21,0.00022191,2]
[363078595,1748568654609,-420.0,0.00022191,2]
[363078596,1748568654619,-420.0,0.00022191,2]
[363078597,1748568654630,-503.42,0.00022191,2]
[363078598,1748568654639,-430.45,0.00022191,2]
[363078599,1748568654649,-459.20796681,0.00022191,2]
[363078600,1748568654659,-767.97,0.00022191,2]
[363078601,1748568654668,-420.0,0.00022191,2]
[363078602,1748568654678,-420.0,0.00022191,2]
[363078603,1748568654688,-464.45,0.00022191,2]
[363078604,1748568654697,-738.48,0.00022191,2]
[363078605,1748568654707,-494.99,0.00022191,2]
[363078606,1748568654719,-1388.08,0.00022191,2]
[363078607,1748568654729,-649.63,0.00022191,2]
[363078608,1748568654739,-531.03,0.00022191,2]
[363078609,1748568654748,-420.0,0.00022191,2]
[363078610,1748568654757,-1307.92,0.00022191,2]
[363078611,1748568654767,-1715.73,0.00022191,2]
[363078612,1748568654777,-1310.07,0.00022191,2]
[363078613,1748568654786,-420.0,0.00022191,2]
[363078614,1748568654795,-1571.62,0.00022191,2]
[363078615,1748568654805,-828.74,0.00022191,2]
[363078616,1748568654814,-646.77,0.00022191,2]
[363078617,1748568654824,-549.36,0.00022191,2]
[363078618,1748568654833,-737.61,0.00022191,2]
[363078619,1748568654843,-1337.23,0.00022191,2]
[363078620,1748568654852,-420.0,0.00022191,2]
[363078621,1748568654861,-420.0,0.00022191,2]
[363078622,1748568654871,-1059.13,0.00022191,2]
[363078623,1748568654881,-420.0,0.00022191,2]
[363078624,1748568654890,-729.79,0.00022191,2]
[363078625,1748568654900,-489.74,0.00022191,2]
[363078626,1748568654909,-640.04,0.00022191,2]
[363078627,1748568654919,-1359.84,0.00022191,2]
[363078628,1748568655135,-420.0,0.00022191,2]
[363078629,1748568655146,-420.0,0.00022191,2]
[363078630,1748568655156,-810.76,0.00022191,2]
[363078631,1748568655165,-501.63,0.00022191,2]
[363078632,1748568655174,-1544.94,0.00022191,2]
[363078633,1748568655185,-420.0,0.00022191,2]
[363078634,1748568655194,-420.0,0.00022191,2]
[363078635,1748568655203,-420.0,0.00022191,2]
[363078636,1748568655213,-651.07,0.00022191,2]
[363078637,1748568655223,-888.67,0.00022191,2]
[363078638,1748568655232,-1751.33,0.00022191,2]
[363078639,1748568655242,-420.0,0.00022191,2]
[363078640,1748568655251,-420.0,0.00022191,2]
[363078641,1748568655261,-685.82,0.00022191,2]
[363078642,1748568655271,-420.0,0.00022191,2]
[363078643,1748568655280,-541.55,0.00022191,2]
[363078644,1748568655290,-420.0,0.00022191,2]
[363078645,1748568655299,-420.0,0.00022191,2]
[363078646,1748568655309,-767.78,0.00022191,2]
[363078647,1748568655319,-859.43,0.00022191,2]
[363078648,1748568655329,-420.0,0.00022191,2]
[363078649,1748568655339,-420.0,0.00022191,2]
[363078650,1748568655349,-574.31,0.00022191,2]
[363078651,1748568655359,-586.95,0.00022191,2]
[363078652,1748568655368,-1288.57,0.00022191,2]
[363078653,1748568655378,-420.0,0.00022191,2]
[363078654,1748568655388,-790.11,0.00022191,2]
[363078655,1748568655397,-420.0,0.00022191,2]
[363078656,1748568655407,-778.08,0.00022191,2]
[363078657,1748568655416,-1574.81,0.00022191,2]
[363078658,1748568655425,-803.5,0.00022191,2]
[363078659,1748568655435,-420.0,0.00022191,2]
[363078660,1748568655445,-385.809163,0.00022191,7]
[363078661,1748568655458,-212.141738,0.00022191,7]
[363078662,1748568655470,-433.7,0.00022191,2]
[363078663,1748568655479,-150.98581717,0.00022191,2]
[363078664,1748568655490,-420.0,0.00022191,2]
[363078665,1748568655499,-475.11,0.00022191,2]
[363078666,1748568655509,-1252.72,0.00022191,2]
[363078667,1748568655519,-385.809163,0.00022191,7]
[363078668,1748568655530,-212.141738,0.00022191,7]
[363078669,1748568655540,-420.0,0.00022191,2]
[363078670,1748568655549,-591.93,0.00022191,2]
[363078671,1748568655559,-1148.47,0.00022191,2]
[363078672,1748568655569,-923.0,0.00022191,2]
[363078673,1748568655578,-1090.97,0.00022191,2]
[363078674,1748568655587,-1385.22,0.00022191,2]
[363078675,1748568655597,-420.0,0.00022191,2]
[363078676,1748568655607,-428.53,0.00022191,2]
[363078677,1748568655616,-420.0,0.00022191,2]
[363078678,1748568655625,-753.27,0.00022191,2]
[363078679,1748568655635,-1900.95,0.00022191,2]
[363078680,1748568655645,-434.45,0.00022191,2]
[363078681,1748568655655,-867.14,0.00022191,2]
[363078682,1748568655665,-506.22,0.00022191,2]
[363078683,1748568655674,-420.0,0.00022191,2]
[363078684,1748568655684,-1678.4,0.00022191,2]
[363078685,1748568655693,-639.04,0.00022191,2]
[363078686,1748568655703,-1291.71,0.00022191,2]
[363078687,1748568655712,-529.65,0.00022191,2]
[363078688,1748568655722,-420.0,0.00022191,2]
[363078689,1748568655731,-918.02,0.00022191,2]
[363078690,1748568655740,-420.0,0.00022191,2]
[363078691,1748568655750,-420.0,0.00022191,2]
[363078692,1748568655759,-583.6,0.00022191,2]
[363078693,1748568655768,-1487.01,0.00022191,2]
[363078694,1748568655778,-737.49,0.00022191,2]
[363078695,1748568655787,-845.53,0.00022191,2]
[363078696,1748568655797,-420.0,0.00022191,2]
[363078697,1748568655806,-420.0,0.00022191,2]
[363078698,1748568655815,-551.04,0.00022191,2]
[363078699,1748568655824,-420.0,0.00022191,2]
[363078700,1748568655833,-420.0,0.00022191,2]
[363078701,1748568655843,-492.38,0.00022191,2]